Cogmind - Beta 12 X1 @@@ ROGUE MODE // 2022.08.01 @ 16:56:02 Player: btmk16 Result: Destroyed by as-39389 with Assembled F-torch Performance ------------- Evolutions (1) 500 Regions Visited (4) 800 Robots Destroyed (8) 40 Value Destroyed (99) 99 Prototype IDs (1) 20 Alien Tech Used (0) 0 Bonus (200) 200 TOTAL SCORE: 1659 Bonus ------- Pacifist 200 Cogmind --------- Core Integrity 0/400 Matter 253/300 Energy 100/100 System Corruption 0% Temperature Cool (20) Movement Core (150) Ox2 Location -9/Mines Parts ------- > --- POWER (1) -------- (None) > --- PROPULSION (4) --- (None) > --- UTILITY (2) ------ Splice Drone Bay (4/6) > --- WEAPON (2) ------- (None) > --- INVENTORY (5) ---- Aluminum Leg Small Storage Unit Small Laser Peak State ------------ > --- POWER ------------ Light Ion Engine > --- PROPULSION ------- Light Treads Light Treads Aluminum Leg Wheel > --- UTILITY ---------- Splice Drone Bay > --- WEAPON ----------- Grenade Launcher > --- INVENTORY -------- Aluminum Leg Small Storage Unit Small Laser [Rating: 13] Favorites ----------- Power Light Ion Engine Engine Light Ion Engine Propulsion Light Treads Treads Light Treads Leg Aluminum Leg Wheel Wheel Hover Unit Hover Unit Flight Unit Flight Unit Utility Splice Drone Bay Device Splice Drone Bay Storage Small Storage Unit Weapon Light Assault Rifle Energy Gun Small Laser Ballistic Gun Light Assault Rifle Launcher Grenade Launcher Build | -11 -10 -10 -9 -9 ------- Run | Scr Mat Min Mat Min Slots Evolved 2 | . . . 2 . Power . | . . . . . Propulsion 2 | . . . 2 . Utility . | . . . . . Weapon . | . . . . . Parts Attached 15 | . 2 . 2 11 Power 1 | . . . . 1 Engine 1 | . . . . 1 Core . | . . . . . Reactor . | . . . . . Propulsion 7 | . 2 . 1 4 Treads 2 | . . . . 2 Leg 1 | . . . . 1 Wheel 1 | . . . . 1 Hover 2 | . 2 . . . Flight 1 | . . . 1 . Utility 5 | . . . . 5 Device 4 | . . . . 4 Storage 1 | . . . . 1 Processor . | . . . . . Hackware . | . . . . . Protection . | . . . . . Artifact . | . . . . . Weapon 2 | . . . 1 1 Energy Gun . | . . . . . Energy Cannon . | . . . . . Ballistic Gun . | . . . . . Ballistic Cannon . | . . . . . Launcher 2 | . . . 1 1 Special Weapon . | . . . . . Impact Weapon . | . . . . . Slashing Weapon . | . . . . . Piercing Weapon . | . . . . . Special Melee Weapon . | . . . . . Unidentified Prototypes 1 | . . . . 1 Parts Lost 12 | . . . 6 6 Power 2 | . . . 1 1 Propulsion 7 | . . . 3 4 Utility . | . . . . . Weapon 3 | . . . 2 1 Highest Loss Streak 6 | . . . 6 6 To Critical Strikes . | . . . . . Average Slot Usage (%) 54 | . 78 85 39 55 Engine 6 | . 14 14 3 6 Treads 11 | . . . . 19 Leg 7 | . 14 . . 9 Wheel 5 | . . . . 9 Hover 3 | . 7 28 9 . Device 4 | . . . . 7 Storage 4 | . 14 14 11 . Energy Gun 2 | . 14 14 2 . Ballistic Gun 3 | . 14 14 5 . Launcher 3 | . . . 4 3 Naked Turns 10 | . . . . 10 Heaviest Build 14 | 10 10 10 10 14 Greatest Support 20 | 20 20 12 12 10 Greatest Overweight (x) 4 | . 3 . 2 4 Average Overweight (x) . | . . . . 1 Largest Inventory Capacity 8 | . 8 8 8 8 Average Capacity 6 | . 8 8 8 5 Most Carried 8 | . 8 8 8 5 Average Carried 5 | . 6 8 8 3 Final Capacity 8 | 8 8 8 8 5 Final Carried 8 | 6 8 8 8 3 Class Distribution -------------------- 100% | Mutant Dominant Class ---------------- Mutant | -10/Materials Mutant | -10/Mines Mutant | -9/Materials Mutant | -9/Mines Resources | -11 -10 -10 -9 -9 ----------- Run | Scr Mat Min Mat Min Matter Collected 313 | 197 . . 29 87 Remotely . | . . . . . Salvage Created 91 | . . . 77 14 Parts 11 | . . . 11 . Haulers Intercepted . | . . . . . Recyclers Shooed 1 | . . . 1 . Parts Field Recycled . | . . . . . Retrieved Matter . | . . . . . Parts Self-Destructed . | . . . . . Prevented . | . . . . . Kills | -11 -10 -10 -9 -9 ------- Run | Scr Mat Min Mat Min Combat Hostiles Destroyed 16 | . . . 7 9 AOE 16 | . . . 7 9 Classes Destroyed 4 | . . . 3 1 Builder 1 | . . . 1 . Swarmer 6 | . . . 6 . Grunt 1 | . . . 1 . Assembled 9 | . . . . 9 Best Kill Streak 9 | . . . 8 9 Combat Bots Only 9 | . . . 7 9 Max Kills in Single Turn 3 | . . . 3 3 Gunslinging . | . . . . . Exploded 3 | . . . 3 3 Melee . | . . . . . Uniques/NPCs Destroyed . | . . . . . Combat | -11 -10 -10 -9 -9 -------- Run | Scr Mat Min Mat Min Damage Taken 1275 | . . 15 484 776 Core 405 | . . . 197 208 Absorbed by Shields . | . . . . . Core Remaining (%) 100 | 100 . 100 . . Volleys Fired 7 | . . . 3 4 Largest 2 | . . . 2 1 Hottest 50 | . . . 50 30 Shots Fired 10 | . . . 6 4 Gun 3 | . . . 3 . Cannon . | . . . . . Launcher 7 | . . . 3 4 Special . | . . . . . Kinetic 3 | . . . 3 . Thermal . | . . . . . Explosive 7 | . . . 3 4 Electromagnetic . | . . . . . Robot Hit Streak 4 | . . . . 4 Robot Miss Streak 2 | . . . 2 . Penetration Max . | . . . . . Secondary Targets . | . . . . . Shots Hit Robots 4 | . . . . 4 Core Hits 28 | . . . 9 19 Critical Kills . | . . . . . Critical Parts Destroyed . | . . . . . Critical Strikes . | . . . . . Melee Attacks . | . . . . . Impact . | . . . . . Slashing . | . . . . . Piercing . | . . . . . Sneak Attacks . | . . . . . Combat Hostiles . | . . . . . Follow-up Attacks . | . . . . . Damage Inflicted 1148 | . . . 494 654 Guns . | . . . . . Cannons . | . . . . . Explosions 1146 | . . . 494 652 Melee . | . . . . . Ramming 2 | . . . . 2 Kinetic . | . . . . . Thermal . | . . . . . Explosive 1146 | . . . 494 652 Electromagnetic . | . . . . . Impact . | . . . . . Slashing . | . . . . . Piercing . | . . . . . Highest Corruption . | . . . . . Average Corruption . | . . . . . Corruption Purged . | . . . . . Corruption Blocked . | . . . . . Overload Shots . | . . . . . Overflow Damage 101 | . . . 45 56 Projectiles . | . . . . . Explosions 101 | . . . 45 56 Melee . | . . . . . Knockbacks . | . . . . . Impact . | . . . . . Kinetic . | . . . . . Secondary . | . . . . . Self-Inflicted Damage 132 | . . . 4 128 Shots 5 | . . . 1 4 Rammed 1 | . . . . 1 Targets Rammed 1 | . . . . 1 Kicked . | . . . . . Crushed . | . . . . . Highest Temperature 23 | . . . 23 . Average Temperature 11 | . . . 11 . Received Heat Transfer 217 | . . 9 150 58 Siege Activations . | . . . . . Robots Corrupted . | . . . . . Combat Hostiles . | . . . . . Parts Fried . | . . . . . Impact Corruptions . | . . . . . Robots Melted . | . . . . . Combat Hostiles . | . . . . . Parts Melted . | . . . . . Heat Transferred . | . . . . . Parts Sabotaged . | . . . . . Parts Stolen . | . . . . . Parts Stripped . | . . . . . Power Chain Reactions . | . . . . . Missiles Intercepted . | . . . . . Alert | -11 -10 -10 -9 -9 ------- Run | Scr Mat Min Mat Min Peak Influence 243 | . 30 26 243 146 Initial 94 | . . 11 9 94 Average 100 | . 7 24 175 89 Maximum Alert Level 1 | . . . 1 . Low Security (%) 81 | . 100 100 28 100 Level 1 18 | . . . 71 . Level 2 . | . . . . . Level 3 . | . . . . . Level 4 . | . . . . . Level 5 . | . . . . . High Security . | . . . . . Max Security . | . . . . . Squads Dispatched 1 | . 1 . . . Investigation . | . . . . . Extermination . | . . . . . Reinforcement 1 | . 1 . . . Assault . | . . . . . Garrison . | . . . . . Intercept . | . . . . . Searches Triggered . | . . . . . Construction Impeded . | . . . . . Haulers Reinforced . | . . . . . Active Scanning Responses . | . . . . . Cargo Convoy Interrupts . | . . . . . Stealth | -11 -10 -10 -9 -9 --------- Run | Scr Mat Min Mat Min Distress Signals 2 | . . . 1 1 Communications Jammed . | . . . . . Distress Signals . | . . . . . Times Spotted 44 | . 3 2 14 25 Peak Tracking Total 20 | . 2 2 10 20 Tactical Retreats 2 | . . . 1 1 Traps | -11 -10 -10 -9 -9 ------- Run | Scr Mat Min Mat Min Traps Triggered 1 | . . . 1 . Indirectly . | . . . . . Trap Hack Attempts . | . . . . . Triggered . | . . . . . Disarmed . | . . . . . Reprogrammed . | . . . . . Reused . | . . . . . Traps Extracted . | . . . . . Installed . | . . . . . Triggered . | . . . . . Machines | -11 -10 -10 -9 -9 ---------- Run | Scr Mat Min Mat Min Machines Disabled . | . . . . . Max in Single Turn . | . . . . . Machines Sabotaged . | . . . . . Garrisons Compromised . | . . . . . Overloaded Fab Kills . | . . . . . Hacking | -11 -10 -10 -9 -9 --------- Run | Scr Mat Min Mat Min Machines Accessed 1 | . . . . 1 Terminals . | . . . . . Fabricators . | . . . . . Repair Stations . | . . . . . Recycling Units . | . . . . . Scanalyzers . | . . . . . Garrison Access . | . . . . . Total Hacks 1 | . . . . 1 Successful 1 | . . . . 1 Failed . | . . . . . Catastrophic . | . . . . . Database Lockouts . | . . . . . Manual . | . . . . . Terminals . | . . . . . Fabricators . | . . . . . Repair Stations . | . . . . . Recycling Units . | . . . . . Scanalyzers . | . . . . . Garrison Access . | . . . . . Terminal Hacks 1 | . . . . 1 Open Door 1 | . . . . 1 Fabricator Hacks . | . . . . . Repair Station Hacks . | . . . . . Recycling Unit Hacks . | . . . . . Scanalyzer . | . . . . . Garrison Access Hacks . | . . . . . Unauthorized Hacks . | . . . . . Terminals . | . . . . . Fabricators . | . . . . . Repair Stations . | . . . . . Recycling Units . | . . . . . Scanalyzers . | . . . . . Garrison Access . | . . . . . Data Cores Recovered . | . . . . . Used . | . . . . . Hacking Detections . | . . . . . Full Trace Events . | . . . . . Feedback Events . | . . . . . Feedback Blocked . | . . . . . Robot Schematics Acquired . | . . . . . Robots Built . | . . . . . Authchips . | . . . . . Time . | . . . . . Total Robot Build Rating . | . . . . . Part Schematics Acquired . | . . . . . Parts Built . | . . . . . Authchips . | . . . . . Time . | . . . . . Total Part Build Rating . | . . . . . Parts Repaired . | . . . . . Time . | . . . . . Parts Recycled . | . . . . . Recycled Matter . | . . . . . Retrieved Matter . | . . . . . Retrieved Components . | . . . . . Parts Scanalyzed . | . . . . . Part Schematics Acquired . | . . . . . Parts Damaged . | . . . . . Bothacking | -11 -10 -10 -9 -9 ------------ Run | Scr Mat Min Mat Min Used RIF Installer . | . . . . . Robots Hacked . | . . . . . Non-combat . | . . . . . Combat . | . . . . . Robot Hacks Applied . | . . . . . Relay Couplers Released . | . . . . . Fabnet Peak Effective % . | . . . . . Robots Rewired . | . . . . . Allies Hacked . | . . . . . Hacks Repelled . | . . . . . Allies | -11 -10 -10 -9 -9 -------- Run | Scr Mat Min Mat Min Total Allies 1 | . . . . 1 Largest Group 1 | . . . . 1 Highest-Rated Group 8 | . . . . 8 Highest-Rated Ally 8 | . . . . 8 Total Orders 1 | . . . . 1 RETURN 1 | . . . . 1 Ally Attacks 13 | . . . . 13 Total Damage 63 | . . . . 63 Kills . | . . . . . Allies Corrupted . | . . . . . Allies Melted . | . . . . . Intel | -11 -10 -10 -9 -9 ------- Run | Scr Mat Min Mat Min Robot Analysis Total . | . . . . . Derelict Logs Recovered . | . . . . . Drone Launches 16 | . . . . 16 Drone Recoveries 14 | . . . . 14 Exploration | -11 -10 -10 -9 -9 ------------- Run | Scr Mat Min Mat Min Turns Passed 389 | . 43 13 101 232 Spaces Moved 332 | 1 36 24 108 163 Core 216 | . 3 . 51 162 Treads . | . . . . . Legs 23 | 1 21 . . 1 Wheels . | . . . . . Hover 91 | . 12 24 55 . Flight 2 | . . . 2 . Fastest Speed 50 | 120 56 56 56 50 Average Speed 101 | 120 107 56 83 118 Slowest Speed 250 | 120 200 56 150 250 Overloaded Moves . | . . . . . Propulsion Burnouts . | . . . . . Robots Hopped . | . . . . . Cave-ins Triggered . | . . . . . Exploration Rate (%) 18 | 2 8 20 18 43 Regions Visited 4 Branch Regions 2 Pre-discovered Areas . | . . . . . Known Exits Taken . | . . . . . Unknown Exits Taken 4 | 1 1 1 1 . Scrap Searched 1 | . . . . 1 Spaces Dug 7 | . . . 7 . Terrain Destroyed 55 | . . . 17 38 Melee . | . . . . . Projectile . | . . . . . AOE 55 | . . . 17 38 Terrain Rammed . | . . . . . Walls Destroyed . | . . . . . Machines Disabled . | . . . . . Actions | -11 -10 -10 -9 -9 --------- Run | Scr Mat Min Mat Min Total 372 | . 39 23 113 197 Wait 12 | . . . . 12 Move 328 | . 35 23 107 163 Hop . | . . . . . Pick Up . | . . . . . Fast Attach 9 | . 2 . 2 5 Attach 6 | . . . . 6 Detach 6 | . 2 . . 4 Swap . | . . . . . Drop 2 | . . . 1 1 Fire 7 | . . . 3 4 Melee . | . . . . . Ram 1 | . . . . 1 Kick . | . . . . . Crush . | . . . . . Escape Stasis . | . . . . . Rewire 1 | . . . . 1 Trap . | . . . . . Miscellaneous . | . . . . . Route ------- -11/Scrapyard -10/Materials -10/Mines -9/Materials -9/Mines History --------- Turn | Location | Event 1 | -11/Scrapyard | Discovered new exit (range 0) 1 | -11/Scrapyard | Entered Materials 12 | -10/Materials | Discovered new exit (range 10) 44 | -10/Materials | Entered Mines 54 | -10/Mines | Discovered new exit (range 7) 57 | -10/Mines | Entered Materials 57 | -9/Materials | Evolved 2 slots: Propulsion x2 104 | -9/Materials | Destroyed 7 combat bots 144 | -9/Materials | Lost 6 parts (1p3n2w) 149 | -9/Materials | Discovered new exit (range 7) 158 | -9/Materials | Entered Mines 172 | -9/Mines | Found the Drone Emporium 173 | -9/Mines | Found Prototype Device 173 | -9/Mines | Identified Splice Drone Bay 312 | -9/Mines | Build established: Mutant 346 | -9/Mines | Assembled infested the area 363 | -9/Mines | Core integrity fell below 50% 381 | -9/Mines | Core integrity fell below 20% 390 | -9/Mines | Destroyed 9 combat bots 390 | -9/Mines | Destroyed by as-39389 with Assembled F-torch Last Messages --------------- 00368_ Wheel destroyed. 00369_ as-79569 destroyed. 00369_ as-01375 destroyed. 00369_ as-19269 destroyed. 00369_ Aluminum Leg destroyed. 00369_ Destroyed Aluminum Leg. 00369_ Lgt. Treads destroyed. 00369_ Destroyed Lgt. Treads. 00369_ Grenade Launcher destroyed. 00370_ Lgt. Ion Engine destroyed. 00371_ The unstable cave ceiling collapses. 00375_ Lgt. Treads destroyed. 00379_ as-84335 destroyed. 00380_ U-05 Engineer sends out distress signal. 00380_ U-05 Engineer destroyed. 00387_ Splice Drone released from Splice Drone Bay. 00388_ Splice Drone injecting as-89930... 00388_ Splice Drone retrieved by Splice Drone Bay. 00388_ Splice Drone system corrupted by crushing effect. 00389_ Splice Drone retrieved by Splice Drone Bay. Map ----- +----------------------------------------------------+ | ????????????????????????????????# #???????????? | | ???????????????????????????????## #???????????? | | ???????#########???#??????????## #######?????? | | ??????## ##??# ########## ## ##????? | | ??????# #??# ## ##???? | | ??????# #### ##### | | ??????# #??## # | | ???????# ## #??# ############ """ | | ???????## ### #??# #??????????### """ | | ????????# #####?# #??# ! ="#????????????## """ | | ???####?# #?????# #??# %* #???????#?????## # | | ??##[ ### #?????# #### = " #??# #####??# ##### | | ??# #?????# ##### $ # ##### | | ?## ] #?????####### | | ## ###???????????# #### ####### | | # ! ####?????????????######## ##??# ??????? | | #! ##?????????????????????????? ####??? ???????? | | ## ##?????????####????????????????????? ????????? | | ?## #??####???## ##??????????????????? ?????????? | | ??# #?## ##?## ##????????????????? ?????????? | | ??# ### #?# ##??????????????? ??????????? | | ??# ### ##?????????????? ???????????? | | ??### ##%! ###??????????? ????????????? | | ????# ##= a ######????? ????????????? | | ????# ## a ## ##???? ?????????????? | | ????# a @ #??????????????????? | | ????##### a #??????????????????? | | ????????### a a a a #??????????????????? | | ??????????## ######## ##??????????????????? | | ??????????# % #??????####???????????????????? | | ??????##### # #?????????????????????????????? | | ?????# #?????????????????????????????? | | ?????# #### # #?????????????????????????????? | | ??????????## % #?????????????????????????????? | | ??????????# #?????????????????????????????? | | ??????????# # #?????????????????????????????? | | ??????????#### # ##?????????????????????????????? | | ?????????????# ###??????????????????????????????? | | ?????????????# #????????????????????????????????? | | ?????????????# #????????????????????????????????? | | ?????????????# #????????????????????????????????? | | ?????????????# #????????????????????????????????? | | ?????????????# #????????????????????????????????? | | ?????????????# #????????????????????????????????? | | ?????????????# #????????????????????????????????? | | ????????????? #????????????????????????????????? | | ????????????? $#????????????????????????????????? | | ???????????? ####????????????????????????????????? | | ???????????? ????????????????????????????????????? | | ???????????? ????????????????????????????????????? | +----------------------------------------------------+ Best States ------------- Heat Dissipation 28 Energy Generation 10 Energy Capacity 125 Matter Stores 300 Matter Capacity 300 Sight Range 16 Terrain Scan Density 10 Evasion (%) 55 Recoil Reduction 1 Item Schematics ----------------- None Robot Schematics ------------------ None Fabricated ------------ Nothing Alien Tech Used ----------------- None Achievements -------------- None Challenges ------------ None Game ------ Seed AssaultCoordinationCloak Manual? 0 Play Time 00:07:36 Cumulative 437.7 hours Start 2022.08.01 @ 16:46:34 End 2022.08.01 @ 16:56:02 Sessions 1 Manual Loads 0 Difficulty Rogue Special Mode None Game No. 491 Rogue 490 Adventurer 0 Explorer 1 Win Type - Total 13 Types 9/0/2/2/0/0/0/0/0 Lore% 78 Gallery% 88 Achievement% 67 Wizard Run 0 Options --------- ASCII 0 Keyboard 1 Movement Vi Keybinds 0 Fullscreen 1 Font 18/SmallcapsGlow Map View 76x50 Tactical HUD 1 Map Filters NONE Filters NONE Steam 1 RUN: bfd5e220-6242-44c8-8f83-dea21d705658